Workbook

Sheet 12月
A1: 城市居民最低生活保障工作情况统计表（一）
A2: 填报单位：鼓楼区民政局 (2025年12月）
A3: 区县 | C3: 非农 人口 总数 | D3: 保 障 对 象 情 况 | P3: 保障资金情况
D4: 户 数 | I4: 人 数 | O4: 保障对象占非农总人口比例 | P4: 本月 发放 金额 | Q4: 上月 发放 金额 | R4: 本月 新增 金额 | S4: 本月 减少 金额 | T4: 本月调增金额 | U4: 本月 调减 金额 | V4: 本月 人均 补差 金额 | W4: 当年累计发放低保金额总额
D5: 本 月 数 | E5: 上 月 数 | F5: 本月 新增 数 | G5: 本月减少数 | H5: 本月 调整 数 | I5: 本 月 数 | J5: 上 月 数 | K5: 本月 新增 数 | L5: 本月 减少 数 | M5: 本月调增数 | N5: 本月调减数
C6: 万人 | D6: 户 | E6: 户 | F6: 户 | G6: 户 | H6: 户 | I6: 人 | J6: 人 | K6: 人 | L6: 人 | M6: 人 | N6: 人 | O6: （‰） | P6: 元 | Q6: 元 | R6: 元 | S6: 元 | T6: 元 | U6: 元 | V6: 元 | W6: 元
A7: 1 | C7: 2 | D7: 3 | E7: 4 | F7: 5 | G7: 6 | H7: 7 | I7: 8 | J7: 9 | K7: 10 | L7: 11 | M7: 12 | N7: 13 | O7: 14 | P7: 15 | Q7: 16 | R7: 17 | S7: 18 | T7: 19 | U7: 20 | V7: 21 | W7: 22
A8: 1 | B8: 华侨路 | C8: 7.02 | D8: 119 | E8: 121 | F8: 0 | G8: 2 | H8: 0 | I8: 169 | J8: 171 | K8: 0 | L8: 2 | M8: 0 | N8: 0 | O8: =I8/C8/10 -> 2.41 | P8: 152359 | Q8: 153981 | R8: 0 | S8: 1622 | T8: 0 | U8: 0 | V8: =P8/I8 -> 901.53 | W8: 1891538
A9: 2 | B9: 宁海路 | C9: 8.35 | D9: 124 | E9: 126 | F9: 0 | G9: 2 | H9: 0 | I9: 146 | J9: 148 | K9: 0 | L9: 2 | M9: 0 | N9: 0 | O9: =I9/C9/10 -> 1.75 | P9: 155775 | Q9: 157627 | R9: 0 | S9: 1852 | T9: 0 | U9: 0 | V9: =P9/I9 -> 1066.95 | W9: 1965832
A10: 3 | B10: 湖南路 | C10: 6.30 | D10: 121 | E10: 120 | F10: 1 | G10: 0 | H10: 0 | I10: 151 | J10: 150 | K10: 1 | L10: 0 | M10: 0 | N10: 0 | O10: 2.40 | P10: 151726 | Q10: 150276 | R10: 1450 | S10: 0 | T10: 0 | U10: 0 | V10: 1004.81 | W10: 1825866
A11: 4 | B11: 中央门 | C11: 9.94 | D11: 296 | E11: 295 | F11: 3 | G11: 2 | H11: 2 | I11: 410 | J11: 410 | K11: 3 | L11: 3 | M11: 0 | N11: 0 | O11: 4.12 | P11: 382916 | Q11: 384713 | R11: 2677 | S11: 3715 | T11: 82 | U11: 841 | V11: 933.94 | W11: 4649591
A12: 5 | B12: 挹江门 | C12: 7.13 | D12: 187 | E12: 187 | F12: 2 | G12: 2 | H12: 0 | I12: 246 | J12: 245 | K12: 3 | L12: 2 | M12: 0 | N12: 0 | O12: 3.45 | P12: 244857 | Q12: 243073 | R12: 3903 | S12: 2119 | T12: 0 | V12: 995.35 | W12: 2989643
A13: 6 | B13: 江东 | C13: 11.21 | D13: 70 | E13: 71 | F13: 0 | G13: 1 | H13: 0 | I13: 99 | J13: 100 | K13: 0 | L13: 1 | M13: 0 | N13: 0 | O13: 0.88 | P13: =Q13+R13+T13-S13 -> 88183 | Q13: 89410 | R13: 0 | S13: 1227 | T13: 0 | U13: 0 | V13: 890.74 | W13: 1024374
A14: 7 | B14: 凤凰 | C14: 10.4 | D14: 196 | E14: 195 | F14: 1 | G14: 0 | H14: 0 | I14: 263 | J14: 262 | K14: 1 | L14: 0 | M14: 0 | N14: 0 | O14: 2.53 | P14: 250711 | Q14: 250210 | R14: 501 | S14: 0 | T14: 0 | U14: 0 | V14: 953.27 | W14: 3079273
A15: 8 | B15: 热南 | C15: 6.72 | D15: 178 | E15: 178 | F15: 1 | G15: 1 | H15: 0 | I15: 235 | J15: 235 | K15: 1 | L15: 1 | M15: 0 | N15: 0 | O15: 3.50 | P15: 207711 | Q15: 207711 | R15: 1115 | S15: 1115 | T15: 0 | U15: 0 | V15: 883.88 | W15: 2527213
A16: 9 | B16: 下关 | C16: 4.02 | D16: =E16+F16-G16 -> 305 | E16: 304 | F16: 2 | G16: 1 | H16: 0 | I16: =J16+K16-L16+M16-N16 -> 395 | J16: 394 | K16: 2 | L16: 1 | M16: 0 | N16: 0 | O16: 9.83 | P16: =Q16+R16-S16+T16-U16 -> 357437 | Q16: 356441 | R16: 1855 | S16: 859 | T16: 0 | U16: 0 | V16: 904.90 | W16: 4382055
A17: 10 | B17: 建宁路 | C17: 3.87 | D17: 169 | E17: 170 | F17: 0 | G17: 1 | H17: 1 | I17: 219 | J17: 222 | K17: 0 | L17: 1 | M17: 0 | N17: 2 | O17: 5.66 | P17: 212336 | Q17: 214345 | R17: 0 | S17: 1127 | T17: 0 | U17: 882 | V17: 969.57 | W17: 2662931
A18: 11 | B18: 小市 | C18: 6.15 | D18: 247 | E18: 250 | F18: 0 | G18: 3 | H18: 0 | I18: 332 | J18: 335 | K18: 0 | L18: 3 | M18: 0 | N18: 0 | O18: 5.40 | P18: 305835 | Q18: 309141 | R18: 0 | S18: 3306 | T18: 0 | U18: 0 | V18: 921.19 | W18: 3747477
A19: 12 | B19: 宝塔桥 | C19: 8.91 | D19: 497 | E19: 500 | F19: 5 | G19: 8 | H19: 33 | I19: 715 | J19: 721 | K19: 6 | L19: 10 | M19: 0 | N19: 2 | O19: 8.02 | P19: 651924 | Q19: 655090 | R19: 5064 | S19: 8597 | T19: 3314 | U19: 2947 | V19: 911.78 | W19: 7999826
A20: 13 | B20: 幕府山 | C20: 5.85 | D20: =E20+F20-G20 -> 204 | E20: 207 | F20: 0 | G20: 3 | H20: 0 | I20: =J20+K20-L20+M20-N20 -> 278 | J20: 281 | K20: 0 | L20: 3 | M20: 0 | N20: 0 | O20: 4.75 | P20: =Q20+R20-S20+T20-U20 -> 282982 | Q20: 287332 | R20: 0 | S20: 4350 | T20: 0 | U20: 0 | V20: 1017.92 | W20: 3466933
A21: 合计 | C21: =C8+C9+C10+C11+C12+C13+C14+C15+C16+C17+C18+C19+C20 -> 95.8668 | D21: =SUM(D8:D20) -> 2713 | E21: 2724 | F21: =SUM(F8:F20) -> 15 | G21: =SUM(G8:G20) -> 26 | H21: =SUM(H8:H20) -> 36 | I21: =I8+I9+I10+I11+I12+I13+I14+I15+I16+I17+I18+I19+I20 -> 3658 | J21: =SUM(J8:J20) -> 3674 | K21: =SUM(K8:K20) -> 17 | L21: =L8+L9+L10+L11+L12+L13+L14+L15+L16+L17+L18+L19+L20 -> 29 | M21: 0 | N21: 4 | O21: 3.82 | P21: =P8+P9+P10+P11+P12+P13+P14+P15+P16+P17+P18+P19+P20 -> 3444752 | Q21: =SUM(Q8:Q20) -> 3459350 | R21: =SUM(R8:R20) -> 16565 | S21: 29889 | T21: 3396 | U21: 4670 | V21: 941.70 | W21: 42212552
A22: 填表人： 填表时间： 2025.12 签批人：
W37: 17772608
